[Event "*** SCC Grand Prix: Titled Tuesday Blitz"]
[Site "Chess.com"]
[Date "2020.06.02"]
[Round "10"]
[White "1977Ivan"]
[Black "avantage_ru"]
[Result "1-0"]
[WhiteElo "2630"]
[BlackElo "2723"]
[TimeControl "180+1"]
[EndTime "11:59:26 PDT"]
[Termination "1977Ivan won by resignation"]

1. e4 {[%clk 0:03:00.9]} 1... Nf6 {[%clk 0:02:59]} 2. e5 {[%clk 0:02:59.3]} 2...
Ne4 {[%clk 0:02:59.1]} 3. d3 {[%clk 0:02:57.2]} 3... Nc5 {[%clk 0:02:59.2]} 4.
d4 {[%clk 0:02:56.9]} 4... Ne6 {[%clk 0:02:59.3]} 5. f4 {[%clk 0:02:42]} 5... c6
{[%clk 0:02:59.1]} 6. f5 {[%clk 0:02:39.6]} 6... Nc7 {[%clk 0:02:58.6]} 7. Nf3
{[%clk 0:02:39.5]} 7... d6 {[%clk 0:02:58.2]} 8. Bd3 {[%clk 0:02:38.7]} 8...
dxe5 {[%clk 0:02:56.7]} 9. dxe5 {[%clk 0:02:38.4]} 9... e6 {[%clk 0:02:56.6]}
10. f6 {[%clk 0:02:29]} 10... gxf6 {[%clk 0:02:56.2]} 11. exf6 {[%clk
0:02:29.1]} 11... Bc5 {[%clk 0:02:48.1]} 12. Nc3 {[%clk 0:02:27.7]} 12... Nd5
{[%clk 0:02:45.1]} 13. Ne4 {[%clk 0:02:27.2]} 13... Bb6 {[%clk 0:02:44.4]} 14.
Qe2 {[%clk 0:02:23.7]} 14... Na6 {[%clk 0:02:27.1]} 15. a3 {[%clk 0:02:16.7]}
15... Nc5 {[%clk 0:02:25.8]} 16. Nxc5 {[%clk 0:02:16]} 16... Bxc5 {[%clk
0:02:25.6]} 17. Bg5 {[%clk 0:02:11.8]} 17... h6 {[%clk 0:02:22.5]} 18. Bd2
{[%clk 0:02:08.1]} 18... Qxf6 {[%clk 0:02:18.1]} 19. Qe4 {[%clk 0:01:39.8]}
19... Qxb2 {[%clk 0:02:15.5]} 20. Ke2 {[%clk 0:01:36.7]} 20... Nc3+ {[%clk
0:02:14.6]} 21. Bxc3 {[%clk 0:01:36]} 21... Qxc3 {[%clk 0:02:14.4]} 22. Rhf1
{[%clk 0:01:35.4]} 22... f5 {[%clk 0:02:01.9]} 23. Qh4 {[%clk 0:01:33]} 23...
Qg7 {[%clk 0:01:52.9]} 24. g3 {[%clk 0:01:28.4]} 24... O-O {[%clk 0:01:41]} 25.
h3 {[%clk 0:01:10.9]} 25... Be7 {[%clk 0:01:11.5]} 26. Qc4 {[%clk 0:00:59.4]}
26... Bf6 {[%clk 0:01:02.1]} 27. Rab1 {[%clk 0:00:56.1]} 27... b5 {[%clk
0:01:01.6]} 28. Qxc6 {[%clk 0:00:52.7]} 28... Bd7 {[%clk 0:01:01.7]} 29. Qd6
{[%clk 0:00:42.7]} 29... e5 {[%clk 0:00:59.6]} 30. Bxb5 {[%clk 0:00:40.7]} 30...
Bxb5+ {[%clk 0:00:55]} 31. Rxb5 {[%clk 0:00:40.5]} 31... e4 {[%clk 0:00:53.1]}
32. Nh4 {[%clk 0:00:36.1]} 32... Bxh4 {[%clk 0:00:50]} 33. gxh4 {[%clk
0:00:35.6]} 33... Rad8 {[%clk 0:00:38.7]} 34. Qe6+ {[%clk 0:00:35.3]} 34... Kh8
{[%clk 0:00:38.8]} 35. Rbxf5 {[%clk 0:00:33.6]} 35... Rxf5 {[%clk 0:00:33.1]}
36. Qxf5 {[%clk 0:00:28.2]} 36... e3 {[%clk 0:00:31.6]} 37. Qf6 {[%clk
0:00:27.4]} 37... Qxf6 {[%clk 0:00:30.7]} 38. Rxf6 {[%clk 0:00:26.6]} 38... Kg7
{[%clk 0:00:26.7]} 39. Ra6 {[%clk 0:00:26]} 39... Rd2+ {[%clk 0:00:26.5]} 40.
Kxe3 {[%clk 0:00:25.9]} 40... Rxc2 {[%clk 0:00:27.1]} 41. Rxa7+ {[%clk
0:00:26.1]} 41... Kg6 {[%clk 0:00:27.7]} 42. Ra6+ {[%clk 0:00:23.9]} 42... Kh5
{[%clk 0:00:27.7]} 43. Kf3 {[%clk 0:00:23.3]} 43... Rc4 {[%clk 0:00:26]} 44. Kg3
{[%clk 0:00:22.7]} 44... Rc3+ {[%clk 0:00:26.1]} 45. Kg2 {[%clk 0:00:22.7]}
45... Rc4 {[%clk 0:00:25]} 46. a4 {[%clk 0:00:20.6]} 46... Rxh4 {[%clk 0:00:24]}
47. Ra5+ {[%clk 0:00:20.2]} 47... Kg6 {[%clk 0:00:23.6]} 48. Kg3 {[%clk
0:00:20.4]} 48... Rb4 {[%clk 0:00:23.6]} 49. Ra6+ {[%clk 0:00:19.8]} 49... Kg5
{[%clk 0:00:23.1]} 50. h4+ {[%clk 0:00:17.2]} 50... Kh5 {[%clk 0:00:20.2]} 51.
Ra5+ {[%clk 0:00:16.8]} 51... Kg6 {[%clk 0:00:20.4]} 52. h5+ {[%clk 0:00:17]}
52... Kf6 {[%clk 0:00:20.7]} 53. Kf3 {[%clk 0:00:16.9]} 53... Rc4 {[%clk
0:00:17.7]} 54. Ke3 {[%clk 0:00:16.9]} 54... Rh4 {[%clk 0:00:15.4]} 55. Kd3
{[%clk 0:00:16.8]} 55... Rf4 {[%clk 0:00:15.3]} 56. Kc3 {[%clk 0:00:16.5]} 56...
Re4 {[%clk 0:00:15.4]} 57. Kb3 {[%clk 0:00:16.5]} 57... Rh4 {[%clk 0:00:15.4]}
58. Rb5 {[%clk 0:00:16.5]} 58... Ke7 {[%clk 0:00:15.3]} 59. a5 {[%clk
0:00:16.4]} 59... Kd7 {[%clk 0:00:15.7]} 60. a6 {[%clk 0:00:16.4]} 60... Rh3+
{[%clk 0:00:15.7]} 61. Ka4 {[%clk 0:00:15.6]} 61... Rh1 {[%clk 0:00:15.6]} 62.
Ra5 {[%clk 0:00:14.1]} 62... Ra1+ {[%clk 0:00:15.1]} 63. Kb5 {[%clk 0:00:13.5]}
63... Rb1+ {[%clk 0:00:15.3]} 64. Kc4 {[%clk 0:00:13.2]} 64... Rc1+ {[%clk
0:00:15.5]} 65. Kd5 {[%clk 0:00:13]} 65... Rc8 {[%clk 0:00:16]} 66. a7 {[%clk
0:00:12.5]} 66... Ra8 {[%clk 0:00:16.5]} 67. Ke5 {[%clk 0:00:12.5]} 67... Kc7
{[%clk 0:00:17]} 68. Kf6 {[%clk 0:00:12.3]} 1-0

[Event "*** SCC Grand Prix: Titled Tuesday Blitz"]
[Site "Chess.com"]
[Date "2020.06.02"]
[Round "10"]
[White "TrenerChos"]
[Black "Matveev_Vladimir"]
[Result "0-1"]
[WhiteElo "2354"]
[BlackElo "2551"]
[TimeControl "180+1"]
[EndTime "11:59:26 PDT"]
[Termination "Matveev_Vladimir won by checkmate"]

1. e4 {[%clk 0:03:00.9]} 1... c5 {[%clk 0:02:59.5]} 2. Nf3 {[%clk 0:02:59.5]}
2... d6 {[%clk 0:02:59.8]} 3. Bb5+ {[%clk 0:02:56.7]} 3... Nd7 {[%clk
0:02:58.5]} 4. O-O {[%clk 0:02:55.9]} 4... a6 {[%clk 0:02:58.4]} 5. Bxd7+ {[%clk
0:02:55.6]} 5... Bxd7 {[%clk 0:02:59.3]} 6. d4 {[%clk 0:02:51.4]} 6... cxd4
{[%clk 0:02:58.8]} 7. Nxd4 {[%clk 0:02:51.8]} 7... e5 {[%clk 0:02:57.3]} 8. Ne2
{[%clk 0:02:49.4]} 8... h6 {[%clk 0:02:56.6]} 9. c4 {[%clk 0:02:48.2]} 9... b5
{[%clk 0:02:53.4]} 10. Nd2 {[%clk 0:02:40.3]} 10... Nf6 {[%clk 0:02:50.7]} 11.
Nc3 {[%clk 0:02:37.6]} 11... Rc8 {[%clk 0:02:41.8]} 12. cxb5 {[%clk 0:02:35.3]}
12... axb5 {[%clk 0:02:42.7]} 13. a3 {[%clk 0:02:35.1]} 13... Be7 {[%clk
0:02:39.9]} 14. h3 {[%clk 0:02:26.6]} 14... O-O {[%clk 0:02:39.2]} 15. Qe2
{[%clk 0:02:26.4]} 15... Qb6 {[%clk 0:02:38.1]} 16. Nf3 {[%clk 0:02:21.9]} 16...
Be6 {[%clk 0:02:36.5]} 17. Rd1 {[%clk 0:02:18]} 17... Qb7 {[%clk 0:02:24.6]} 18.
Qxb5 {[%clk 0:02:13]} 18... Qxb5 {[%clk 0:02:20.5]} 19. Nxb5 {[%clk 0:02:12.4]}
19... Nxe4 {[%clk 0:02:20.9]} 20. Be3 {[%clk 0:02:10.8]} 20... f6 {[%clk
0:02:07.1]} 21. Rac1 {[%clk 0:02:08.2]} 21... Rxc1 {[%clk 0:01:50.1]} 22. Rxc1
{[%clk 0:02:07.6]} 22... d5 {[%clk 0:01:47.4]} 23. Rc7 {[%clk 0:02:03.5]} 23...
Bd8 {[%clk 0:01:39.7]} 24. Rb7 {[%clk 0:02:01.5]} 24... d4 {[%clk 0:01:37.9]}
25. Bd2 {[%clk 0:01:49]} 25... Nc5 {[%clk 0:01:34.6]} 26. Rb8 {[%clk 0:01:46.4]}
26... Be7 {[%clk 0:01:24.1]} 27. Rxf8+ {[%clk 0:01:45]} 27... Kxf8 {[%clk
0:01:25]} 28. Ne1 {[%clk 0:01:45]} 28... Na4 {[%clk 0:01:20.7]} 29. b4 {[%clk
0:01:32.4]} 29... Bd7 {[%clk 0:00:47.8]} 30. Nc7 {[%clk 0:01:24.5]} 30... Nb6
{[%clk 0:00:47.8]} 31. Nd3 {[%clk 0:01:18.5]} 31... Bd6 {[%clk 0:00:25.3]} 32.
Na6 {[%clk 0:01:16.1]} 32... Bb5 {[%clk 0:00:21.4]} 33. Nac5 {[%clk 0:01:13.3]}
33... f5 {[%clk 0:00:18.9]} 34. f3 {[%clk 0:01:08.4]} 34... Ke7 {[%clk
0:00:17.9]} 35. a4 {[%clk 0:01:02.8]} 35... Nxa4 {[%clk 0:00:17.3]} 36. Nxa4
{[%clk 0:01:00.6]} 36... Bxa4 {[%clk 0:00:18.2]} 37. Nc5 {[%clk 0:00:57.7]}
37... Bb5 {[%clk 0:00:18]} 38. Kf2 {[%clk 0:00:57.5]} 38... Bc6 {[%clk
0:00:16.4]} 39. Be1 {[%clk 0:00:54.7]} 39... e4 {[%clk 0:00:16.4]} 40. fxe4
{[%clk 0:00:53.7]} 40... fxe4 {[%clk 0:00:17.3]} 41. Ke2 {[%clk 0:00:52.5]}
41... Kf6 {[%clk 0:00:15.3]} 42. g4 {[%clk 0:00:51.5]} 42... Bf4 {[%clk
0:00:12.3]} 43. Bh4+ {[%clk 0:00:49.1]} 43... g5 {[%clk 0:00:11.6]} 44. Bf2
{[%clk 0:00:44.9]} 44... Bb5+ {[%clk 0:00:12]} 45. Kd1 {[%clk 0:00:43.6]} 45...
e3 {[%clk 0:00:12.4]} 46. Be1 {[%clk 0:00:43.1]} 46... d3 {[%clk 0:00:12.2]} 47.
Bc3+ {[%clk 0:00:42.3]} 47... Kg6 {[%clk 0:00:11.7]} 48. Ke1 {[%clk 0:00:38.6]}
48... Bg3+ {[%clk 0:00:10.7]} 49. Kd1 {[%clk 0:00:38.7]} 49... e2+ {[%clk
0:00:11]} 50. Kc1 {[%clk 0:00:38.2]} 50... e1=Q+ {[%clk 0:00:11.3]} 51. Bxe1
{[%clk 0:00:38.1]} 51... Bxe1 {[%clk 0:00:12.2]} 52. Ne4 {[%clk 0:00:37.8]}
52... Bc6 {[%clk 0:00:10.8]} 53. Nd2 {[%clk 0:00:36.7]} 53... Bxd2+ {[%clk
0:00:10.5]} 54. Kxd2 {[%clk 0:00:34]} 54... Bb5 {[%clk 0:00:11.4]} 55. Ke3
{[%clk 0:00:33]} 55... Kf6 {[%clk 0:00:11.9]} 56. Kd2 {[%clk 0:00:33.2]} 56...
Ke5 {[%clk 0:00:12.1]} 57. Ke3 {[%clk 0:00:34.1]} 57... Kd5 {[%clk 0:00:12.3]}
58. Kd2 {[%clk 0:00:33.6]} 58... Kd4 {[%clk 0:00:13.2]} 59. h4 {[%clk 0:00:27]}
59... gxh4 {[%clk 0:00:14.1]} 60. g5 {[%clk 0:00:27.3]} 60... hxg5 {[%clk
0:00:14.9]} 61. Ke1 {[%clk 0:00:27]} 61... Ke3 {[%clk 0:00:14.3]} 62. Kd1 {[%clk
0:00:27]} 62... Ba4+ {[%clk 0:00:14.3]} 63. Kc1 {[%clk 0:00:22.8]} 63... d2+
{[%clk 0:00:15.2]} 64. Kb2 {[%clk 0:00:21.6]} 64... d1=Q {[%clk 0:00:16.1]} 65.
b5 {[%clk 0:00:21.1]} 65... Qc2+ {[%clk 0:00:14.7]} 66. Ka1 {[%clk 0:00:21.2]}
66... Bb3 {[%clk 0:00:14.9]} 67. b6 {[%clk 0:00:20.7]} 67... Qa2# {[%clk
0:00:15.8]} 0-1

[Event "*** SCC Grand Prix: Titled Tuesday Blitz"]
[Site "Chess.com"]
[Date "2020.06.02"]
[Round "10"]
[White "jb2mix"]
[Black "Jospem"]
[Result "1-0"]
[WhiteElo "2723"]
[BlackElo "2858"]
[TimeControl "180+1"]
[EndTime "11:59:28 PDT"]
[Termination "jb2mix won by checkmate"]

1. e4 {[%clk 0:03:00]} 1... c5 {[%clk 0:02:59.8]} 2. c3 {[%clk 0:03:00.1]} 2...
d5 {[%clk 0:02:58.5]} 3. exd5 {[%clk 0:03:01]} 3... Qxd5 {[%clk 0:02:59.4]} 4.
d4 {[%clk 0:03:01.6]} 4... Nf6 {[%clk 0:02:59.7]} 5. Nf3 {[%clk 0:03:02.5]} 5...
e6 {[%clk 0:03:00]} 6. Na3 {[%clk 0:03:02.5]} 6... Nc6 {[%clk 0:02:58.3]} 7. Nb5
{[%clk 0:03:02.8]} 7... Qd8 {[%clk 0:02:58.2]} 8. dxc5 {[%clk 0:03:03.4]} 8...
Bxc5 {[%clk 0:02:56.8]} 9. Qxd8+ {[%clk 0:03:03.9]} 9... Kxd8 {[%clk 0:02:57.3]}
10. b4 {[%clk 0:03:04.8]} 10... Bb6 {[%clk 0:02:48.6]} 11. Nd6 {[%clk
0:03:05.2]} 11... Ke7 {[%clk 0:02:47.7]} 12. Nc4 {[%clk 0:03:06.1]} 12... Nd5
{[%clk 0:02:42.2]} 13. b5 {[%clk 0:02:38.9]} 13... Na5 {[%clk 0:02:41.1]} 14.
Ba3+ {[%clk 0:02:39.2]} 14... Kf6 {[%clk 0:02:37.8]} 15. Nd6 {[%clk 0:02:15.4]}
15... Rd8 {[%clk 0:02:12.3]} 16. Ne4+ {[%clk 0:02:02.6]} 16... Kg6 {[%clk
0:01:59.6]} 17. Bd3 {[%clk 0:01:23.1]} 17... f5 {[%clk 0:01:55.6]} 18. Ne5+
{[%clk 0:01:21.8]} 18... Kh6 {[%clk 0:01:35.4]} 19. Bc1+ {[%clk 0:01:21.8]}
19... g5 {[%clk 0:01:34.1]} 20. Bxg5+ {[%clk 0:01:21.8]} 20... Kg7 {[%clk
0:01:34.3]} 21. Bxd8 {[%clk 0:01:20.7]} 21... Bxd8 {[%clk 0:01:34.7]} 22. Ng3
{[%clk 0:01:09.7]} 22... Kg8 {[%clk 0:01:22]} 23. O-O {[%clk 0:01:03.5]} 23...
Bf6 {[%clk 0:01:22.1]} 24. Rfe1 {[%clk 0:01:03.5]} 24... Nf4 {[%clk 0:01:14.9]}
25. Bf1 {[%clk 0:00:56.5]} 25... b6 {[%clk 0:01:14.5]} 26. Rad1 {[%clk
0:00:52.5]} 26... Bb7 {[%clk 0:01:14.6]} 27. c4 {[%clk 0:00:38.9]} 27... h5
{[%clk 0:01:05.6]} 28. h4 {[%clk 0:00:33.5]} 28... Bxh4 {[%clk 0:01:02.4]} 29.
Rd4 {[%clk 0:00:33.8]} 29... Bg5 {[%clk 0:01:00.1]} 30. Ne2 {[%clk 0:00:27]}
30... Nxe2+ {[%clk 0:00:55.3]} 31. Bxe2 {[%clk 0:00:27.9]} 31... h4 {[%clk
0:00:52.5]} 32. Rd7 {[%clk 0:00:25.7]} 32... Bf6 {[%clk 0:00:29.5]} 33. Bf3
{[%clk 0:00:15.7]} 33... Bxf3 {[%clk 0:00:26.9]} 34. Nxf3 {[%clk 0:00:16.6]}
34... Re8 {[%clk 0:00:26.3]} 35. Rxa7 {[%clk 0:00:16]} 35... Nxc4 {[%clk
0:00:26.2]} 36. a4 {[%clk 0:00:16]} 36... e5 {[%clk 0:00:21.2]} 37. Nd4 {[%clk
0:00:15.7]} 37... Nd6 {[%clk 0:00:18]} 38. Nc6 {[%clk 0:00:13.1]} 38... e4
{[%clk 0:00:16.6]} 39. Rd7 {[%clk 0:00:13]} 39... Nc4 {[%clk 0:00:15.7]} 40. Rd5
{[%clk 0:00:11.6]} 40... f4 {[%clk 0:00:12.5]} 41. Rf5 {[%clk 0:00:12.1]} 41...
Bc3 {[%clk 0:00:13.1]} 42. Re2 {[%clk 0:00:10.8]} 42... e3 {[%clk 0:00:11.9]}
43. Rxf4 {[%clk 0:00:10.2]} 43... exf2+ {[%clk 0:00:10.6]} 44. Rfxf2 {[%clk
0:00:11.1]} 44... Ra8 {[%clk 0:00:10.6]} 45. Re4 {[%clk 0:00:10.4]} 45... Nd6
{[%clk 0:00:08.9]} 46. Rg4+ {[%clk 0:00:10.4]} 46... Kh7 {[%clk 0:00:09.6]} 47.
Rxh4+ {[%clk 0:00:10.1]} 47... Kg6 {[%clk 0:00:09.8]} 48. Rf3 {[%clk 0:00:10.4]}
48... Nf5 {[%clk 0:00:08.3]} 49. Rg4+ {[%clk 0:00:10]} 49... Kh5 {[%clk
0:00:08.9]} 50. Rgf4 {[%clk 0:00:09.3]} 50... Nh4 {[%clk 0:00:06.4]} 51. Rxc3
{[%clk 0:00:09.2]} 51... Ng6 {[%clk 0:00:07.3]} 52. Rh3+ {[%clk 0:00:09.4]}
52... Kg5 {[%clk 0:00:07.5]} 53. Rd4 {[%clk 0:00:10.3]} 53... Nf4 {[%clk
0:00:07.2]} 54. Rg3+ {[%clk 0:00:10.7]} 54... Kf5 {[%clk 0:00:07.9]} 55. Rf3
{[%clk 0:00:11.3]} 55... Ke6 {[%clk 0:00:07.7]} 56. Rdxf4 {[%clk 0:00:11.2]}
56... Rh8 {[%clk 0:00:08.6]} 57. Rd4 {[%clk 0:00:10.9]} 57... Rh1+ {[%clk
0:00:07.3]} 58. Kf2 {[%clk 0:00:08.3]} 58... Rf1+ {[%clk 0:00:07.9]} 59. Kg3
{[%clk 0:00:08.8]} 59... Rg1 {[%clk 0:00:08.4]} 60. Re3+ {[%clk 0:00:08.8]}
60... Kf7 {[%clk 0:00:08.7]} 61. Rf4+ {[%clk 0:00:09.6]} 61... Kg6 {[%clk
0:00:08.9]} 62. Re6+ {[%clk 0:00:09.6]} 62... Kg5 {[%clk 0:00:09.5]} 63. Re5+
{[%clk 0:00:10.2]} 63... Kg6 {[%clk 0:00:10]} 64. Ne7+ {[%clk 0:00:10.5]} 64...
Kg7 {[%clk 0:00:10.6]} 65. Rg5+ {[%clk 0:00:09.8]} 65... Kh7 {[%clk 0:00:10.9]}
66. Rh4# {[%clk 0:00:09.8]} 1-0

[Event "*** SCC Grand Prix: Titled Tuesday Blitz"]
[Site "Chess.com"]
[Date "2020.06.02"]
[Round "10"]
[White "Cocaino74"]
[Black "lelajavakhishvili"]
[Result "1-0"]
[WhiteElo "2340"]
[BlackElo "2471"]
[TimeControl "180+1"]
[EndTime "11:59:29 PDT"]
[Termination "Cocaino74 won by resignation"]

1. e4 {[%clk 0:03:00.9]} 1... d6 {[%clk 0:02:59.2]} 2. d4 {[%clk 0:03:00.7]}
2... Nf6 {[%clk 0:02:59.1]} 3. Nc3 {[%clk 0:03:01.3]} 3... g6 {[%clk 0:02:59.3]}
4. Bg5 {[%clk 0:03:01.9]} 4... Nbd7 {[%clk 0:02:53.2]} 5. Qd2 {[%clk 0:03:00.6]}
5... c6 {[%clk 0:02:53.5]} 6. Nf3 {[%clk 0:02:49.5]} 6... b5 {[%clk 0:02:51]} 7.
Bd3 {[%clk 0:02:47.4]} 7... Nb6 {[%clk 0:02:48]} 8. O-O {[%clk 0:02:44.4]} 8...
Bg7 {[%clk 0:02:47.4]} 9. Bh6 {[%clk 0:02:37.4]} 9... O-O {[%clk 0:02:43]} 10.
a4 {[%clk 0:02:28.4]} 10... b4 {[%clk 0:02:29.7]} 11. Ne2 {[%clk 0:02:11.1]}
11... a5 {[%clk 0:02:30.6]} 12. h3 {[%clk 0:01:54.3]} 12... c5 {[%clk
0:02:22.4]} 13. c3 {[%clk 0:01:28.3]} 13... c4 {[%clk 0:02:15.8]} 14. Bb1 {[%clk
0:01:27.5]} 14... b3 {[%clk 0:01:55.5]} 15. e5 {[%clk 0:01:05.5]} 15... Ne8
{[%clk 0:01:50]} 16. Bxg7 {[%clk 0:00:38.2]} 16... Kxg7 {[%clk 0:01:49.1]} 17.
Ng3 {[%clk 0:00:36.9]} 17... d5 {[%clk 0:01:43]} 18. Nh5+ {[%clk 0:00:30]} 18...
Kg8 {[%clk 0:00:35.4]} 19. Qh6 {[%clk 0:00:30]} 19... f6 {[%clk 0:00:35.5]} 20.
Bxg6 {[%clk 0:00:20.2]} 20... hxg6 {[%clk 0:00:34]} 21. Qxg6+ {[%clk 0:00:21.1]}
21... Kh8 {[%clk 0:00:34.3]} 22. Qh6+ {[%clk 0:00:21.7]} 22... Kg8 {[%clk
0:00:34.6]} 23. Nf4 {[%clk 0:00:08.7]} 23... Bf5 {[%clk 0:00:27.5]} 24. Nh4
{[%clk 0:00:08.3]} 24... Bh7 {[%clk 0:00:21]} 25. Ne6 {[%clk 0:00:06.3]} 25...
Rf7 {[%clk 0:00:17.8]} 26. Nxd8 {[%clk 0:00:06.5]} 26... Rxd8 {[%clk 0:00:18.5]}
27. e6 {[%clk 0:00:06.8]} 27... Rg7 {[%clk 0:00:18.5]} 28. Kh2 {[%clk
0:00:05.7]} 28... Nd6 {[%clk 0:00:18.3]} 29. Rfe1 {[%clk 0:00:05.7]} 29... Ne4
{[%clk 0:00:15.9]} 30. Re3 {[%clk 0:00:05.5]} 30... Nc8 {[%clk 0:00:14.1]} 31.
Rf1 {[%clk 0:00:04.6]} 31... Ncd6 {[%clk 0:00:14]} 32. Qf4 {[%clk 0:00:04.1]}
32... Ng5 {[%clk 0:00:13.3]} 33. Nf3 {[%clk 0:00:03.2]} 33... Rf8 {[%clk
0:00:12.8]} 34. Nxg5 {[%clk 0:00:03.1]} 34... fxg5 {[%clk 0:00:13]} 35. Qg4
{[%clk 0:00:03.3]} 35... Bf5 {[%clk 0:00:12.4]} 36. Qh5 {[%clk 0:00:03.5]} 36...
Bg6 {[%clk 0:00:11.7]} 37. Qg4 {[%clk 0:00:03.6]} 37... Bf5 {[%clk 0:00:11.7]}
38. Qh5 {[%clk 0:00:04]} 38... Ne4 {[%clk 0:00:11.7]} 39. f3 {[%clk 0:00:03.3]}
39... Nf6 {[%clk 0:00:11.5]} 40. Qh6 {[%clk 0:00:02.8]} 40... Rg6 {[%clk
0:00:10.7]} 41. Qxg6+ {[%clk 0:00:02.1]} 41... Bxg6 {[%clk 0:00:10.5]} 42. Re5
{[%clk 0:00:03]} 42... Bd3 {[%clk 0:00:09.8]} 43. Rfe1 {[%clk 0:00:02.8]} 43...
Kh7 {[%clk 0:00:09.9]} 44. Rxg5 {[%clk 0:00:02.7]} 44... Rg8 {[%clk 0:00:10.1]}
45. Rxg8 {[%clk 0:00:02.8]} 45... Kxg8 {[%clk 0:00:11]} 46. g4 {[%clk
0:00:03.5]} 46... Kg7 {[%clk 0:00:11.1]} 47. Kg3 {[%clk 0:00:03.7]} 47... Kg6
{[%clk 0:00:11.1]} 48. h4 {[%clk 0:00:04]} 48... Ne8 {[%clk 0:00:11]} 49. Kf4
{[%clk 0:00:04.5]} 49... Nd6 {[%clk 0:00:10.4]} 50. Ke5 {[%clk 0:00:05]} 50...
Ne8 {[%clk 0:00:06.7]} 51. Kxd5 {[%clk 0:00:05.4]} 51... Nc7+ {[%clk 0:00:05.6]}
52. Kc6 {[%clk 0:00:05.6]} 52... Ne8 {[%clk 0:00:05.6]} 53. Kd7 {[%clk 0:00:06]}
53... Nf6+ {[%clk 0:00:04]} 54. Kxe7 {[%clk 0:00:06.4]} 54... Nd5+ {[%clk
0:00:04.6]} 55. Kd6 {[%clk 0:00:06.5]} 55... Nxc3 {[%clk 0:00:03.1]} 56. bxc3
{[%clk 0:00:06.2]} 56... b2 {[%clk 0:00:02.4]} 57. e7 {[%clk 0:00:06.8]} 1-0

[Event "*** SCC Grand Prix: Titled Tuesday Blitz"]
[Site "Chess.com"]
[Date "2020.06.02"]
[Round "10"]
[White "Sanyura"]
[Black "Justinz"]
[Result "1/2-1/2"]
[WhiteElo "2517"]
[BlackElo "2344"]
[TimeControl "180+1"]
[EndTime "11:59:40 PDT"]
[Termination "Game drawn - insufficient material"]

1. e4 {[%clk 0:02:44.7]} 1... c5 {[%clk 0:02:59.4]} 2. Nf3 {[%clk 0:02:44.4]}
2... d6 {[%clk 0:02:59.1]} 3. d4 {[%clk 0:02:44]} 3... cxd4 {[%clk 0:02:58.9]}
4. Nxd4 {[%clk 0:02:44.9]} 4... Nf6 {[%clk 0:02:59.3]} 5. Nc3 {[%clk 0:02:45.4]}
5... a6 {[%clk 0:02:59.6]} 6. h3 {[%clk 0:02:46]} 6... e6 {[%clk 0:02:59]} 7. g4
{[%clk 0:02:45.7]} 7... Nfd7 {[%clk 0:02:59.1]} 8. Be3 {[%clk 0:02:45.7]} 8...
Be7 {[%clk 0:02:57.8]} 9. h4 {[%clk 0:02:44.2]} 9... Qc7 {[%clk 0:02:54.5]} 10.
g5 {[%clk 0:02:44]} 10... b5 {[%clk 0:02:53.5]} 11. Bh3 {[%clk 0:02:43.4]} 11...
Ne5 {[%clk 0:02:44.7]} 12. h5 {[%clk 0:02:42.7]} 12... Nbc6 {[%clk 0:02:41.6]}
13. g6 {[%clk 0:02:42.5]} 13... hxg6 {[%clk 0:02:41]} 14. hxg6 {[%clk
0:02:42.2]} 14... Nxg6 {[%clk 0:02:38.8]} 15. a3 {[%clk 0:02:36.7]} 15... Bd7
{[%clk 0:02:33.5]} 16. Qe2 {[%clk 0:02:31]} 16... O-O-O {[%clk 0:02:30.9]} 17.
O-O-O {[%clk 0:02:28.9]} 17... Nge5 {[%clk 0:02:19.8]} 18. Nxc6 {[%clk
0:02:27.1]} 18... Bxc6 {[%clk 0:02:14.7]} 19. Nd5 {[%clk 0:02:25.2]} 19... Qb7
{[%clk 0:02:09]} 20. Nxe7+ {[%clk 0:02:24.1]} 20... Qxe7 {[%clk 0:02:08.8]} 21.
Bb6 {[%clk 0:02:23.1]} 21... Rd7 {[%clk 0:02:06.6]} 22. Bd4 {[%clk 0:02:10.5]}
22... Kb7 {[%clk 0:02:00.9]} 23. f4 {[%clk 0:02:07.3]} 23... Nc4 {[%clk
0:02:00.6]} 24. Bxg7 {[%clk 0:02:06.6]} 24... Rg8 {[%clk 0:01:53.3]} 25. Bc3
{[%clk 0:02:06.1]} 25... f5 {[%clk 0:01:49.6]} 26. exf5 {[%clk 0:01:56.2]} 26...
Bxh1 {[%clk 0:01:47.8]} 27. f6 {[%clk 0:01:55.8]} 27... Qd8 {[%clk 0:01:27.6]}
28. Rxh1 {[%clk 0:01:54.3]} 28... Rh8 {[%clk 0:01:07.4]} 29. Bg2+ {[%clk
0:01:39.6]} 29... Kb8 {[%clk 0:01:02.9]} 30. b3 {[%clk 0:01:38.6]} 30... Rxh1+
{[%clk 0:01:01.8]} 31. Bxh1 {[%clk 0:01:39.5]} 31... e5 {[%clk 0:01:01.9]} 32.
bxc4 {[%clk 0:01:38.4]} 32... Qxf6 {[%clk 0:00:58.3]} 33. fxe5 {[%clk
0:01:37.5]} 33... Qh6+ {[%clk 0:00:57.7]} 34. Kb2 {[%clk 0:01:36.8]} 34... Qxh1
{[%clk 0:00:57.5]} 35. e6 {[%clk 0:01:37.1]} 35... Re7 {[%clk 0:00:57.3]} 36.
Bb4 {[%clk 0:01:32.9]} 36... Qc6 {[%clk 0:00:54.3]} 37. cxb5 {[%clk 0:01:30]}
37... axb5 {[%clk 0:00:54.3]} 38. Qe3 {[%clk 0:01:25.2]} 38... Kb7 {[%clk
0:00:50.2]} 39. Qf4 {[%clk 0:01:06.3]} 39... Qd5 {[%clk 0:00:34.2]} 40. Bxd6
{[%clk 0:01:04.8]} 40... Rxe6 {[%clk 0:00:34.2]} 41. Qf7+ {[%clk 0:01:02]} 41...
Ka6 {[%clk 0:00:31.5]} 42. Bb4 {[%clk 0:01:01.9]} 42... Qd4+ {[%clk 0:00:26.2]}
43. Bc3 {[%clk 0:00:53.8]} 43... Qc4 {[%clk 0:00:26.2]} 44. Qg8 {[%clk
0:00:48.4]} 44... Qc6 {[%clk 0:00:24.2]} 45. Bd4 {[%clk 0:00:34.5]} 45... Re2
{[%clk 0:00:20.6]} 46. Qh7 {[%clk 0:00:29.1]} 46... Rxc2+ {[%clk 0:00:11.6]} 47.
Qxc2 {[%clk 0:00:28.7]} 47... Qxc2+ {[%clk 0:00:12.5]} 48. Kxc2 {[%clk
0:00:29.5]} 48... Kb7 {[%clk 0:00:12.9]} 49. Kb3 {[%clk 0:00:29.5]} 49... Ka8
{[%clk 0:00:11.9]} 50. Kb4 {[%clk 0:00:30]} 50... Kb7 {[%clk 0:00:12.6]} 51. Ka5
{[%clk 0:00:28]} 51... Ka8 {[%clk 0:00:12.3]} 52. Kb6 {[%clk 0:00:13.6]} 52...
Kb8 {[%clk 0:00:12.4]} 53. Bc3 {[%clk 0:00:11.8]} 53... Ka8 {[%clk 0:00:11]} 54.
Kc7 {[%clk 0:00:08.1]} 54... Ka7 {[%clk 0:00:11]} 55. Bd4+ {[%clk 0:00:03.5]}
55... Ka8 {[%clk 0:00:11.1]} 56. Bb2 {[%clk 0:00:01.7]} 56... Ka7 {[%clk
0:00:10.8]} 57. Kc6 {[%clk 0:00:02.2]} 57... Ka8 {[%clk 0:00:10.7]} 58. Bd4
{[%clk 0:00:02.3]} 58... Kb8 {[%clk 0:00:10.5]} 59. Kb6 {[%clk 0:00:02.7]} 59...
Ka8 {[%clk 0:00:10.7]} 60. Bc3 {[%clk 0:00:02.8]} 60... Kb8 {[%clk 0:00:10.9]}
61. Bb4 {[%clk 0:00:02.8]} 61... Ka8 {[%clk 0:00:11.8]} 62. Kc7 {[%clk
0:00:02.9]} 62... Ka7 {[%clk 0:00:11.8]} 63. Kc6 {[%clk 0:00:03.5]} 63... Ka8
{[%clk 0:00:12.7]} 64. Bd6 {[%clk 0:00:03.3]} 64... Ka7 {[%clk 0:00:12.3]} 65.
Bc5+ {[%clk 0:00:03.8]} 65... Ka8 {[%clk 0:00:13]} 66. a4 {[%clk 0:00:04.3]}
66... bxa4 {[%clk 0:00:11.1]} 67. Ba3 {[%clk 0:00:04.5]} 67... Kb8 {[%clk
0:00:10.5]} 68. Kb5 {[%clk 0:00:05.4]} 68... Ka8 {[%clk 0:00:11]} 69. Kxa4
{[%clk 0:00:06.3]} 1/2-1/2